[Event "Titled Tuesday Blitz August 22 Early 2023"]
[White "Timofeev, Artyom"]
[Black "Donchenko, Alexander"]
[WhiteFideId "4140419"]
[BlackFideId "24603295"]
[WhiteElo "2853"]
[BlackElo "2939"]
[Result "1/2-1/2"]
[Round "8"]
[TimeControl "180+1"]
[Date "2023.08.22"]
[WhiteClock "0:00:04"]
[BlackClock "0:00:05"]
[Board "17"]

1. c4 {[%clk 0:03:00]}  Nf6 {[%clk 0:02:59]} 2. Nc3 {[%clk 0:03:00]}  e5 {[%clk 0:03:00]} 3. e3 {[%clk 0:02:59]}  Bb4 {[%clk 0:02:59]} 4. Nge2 {[%clk 0:02:59]}  O-O {[%clk 0:03:00]} 5. a3 {[%clk 0:02:58]}  Bxc3 {[%clk 0:02:58]} 6. Nxc3 {[%clk 0:02:58]}  d5 {[%clk 0:02:58]} 7. cxd5 {[%clk 0:02:58]}  Nxd5 {[%clk 0:02:59]} 8. Be2 {[%clk 0:02:58]}  Nc6 {[%clk 0:02:58]} 9. Qc2 {[%clk 0:02:58]}  Be6 {[%clk 0:02:57]} 10. O-O {[%clk 0:02:57]}  Qe7 {[%clk 0:02:53]} 11. d3 {[%clk 0:02:57]}  Rad8 {[%clk 0:02:50]} 12. b4 {[%clk 0:02:54]}  a6 {[%clk 0:02:42]} 13. Bb2 {[%clk 0:02:54]}  f5 {[%clk 0:02:40]} 14. Rfe1 {[%clk 0:02:51]}  f4 {[%clk 0:02:35]} 15. Bf3 {[%clk 0:02:01]}  fxe3 {[%clk 0:02:30]} 16. fxe3 {[%clk 0:02:01]}  Kh8 {[%clk 0:01:58]} 17. Qe2 {[%clk 0:01:50]}  Qg5 {[%clk 0:01:52]} 18. Ne4 {[%clk 0:01:48]}  Qh6 {[%clk 0:01:50]} 19. Rac1 {[%clk 0:01:36]}  Bc8 {[%clk 0:01:42]} 20. Ng3 {[%clk 0:01:29]}  Qg5 {[%clk 0:01:35]} 21. Ne4 {[%clk 0:01:28]}  Qh6 {[%clk 0:01:35]} 22. Rc5 {[%clk 0:01:22]}  Rfe8 {[%clk 0:01:29]} 23. Qf2 {[%clk 0:01:17]}  Nb6 {[%clk 0:01:28]} 24. Qg3 {[%clk 0:01:05]}  Na4 {[%clk 0:01:23]} 25. Ng5 {[%clk 0:01:04]}  Rf8 {[%clk 0:01:12]} 26. Rxc6 {[%clk 0:01:03]}  bxc6 {[%clk 0:01:12]} 27. Bxe5 {[%clk 0:01:04]}  Rxd3 {[%clk 0:01:00]} 28. Bf4 {[%clk 0:01:00]}  Qg6 {[%clk 0:00:51]} 29. Be4 {[%clk 0:00:57]}  Bf5 {[%clk 0:00:51]} 30. Bxd3 {[%clk 0:00:57]}  Bxd3 {[%clk 0:00:52]} 31. e4 {[%clk 0:00:36]}  h6 {[%clk 0:00:46]} 32. Qxd3 {[%clk 0:00:33]}  hxg5 {[%clk 0:00:46]} 33. Bxc7 {[%clk 0:00:33]}  Qf7 {[%clk 0:00:43]} 34. Bg3 {[%clk 0:00:31]}  Nb2 {[%clk 0:00:41]} 35. Qe2 {[%clk 0:00:30]}  Nc4 {[%clk 0:00:40]} 36. h3 {[%clk 0:00:27]}  Kg8 {[%clk 0:00:33]} 37. a4 {[%clk 0:00:26]}  Qe6 {[%clk 0:00:28]} 38. Kh2 {[%clk 0:00:25]}  Rd8 {[%clk 0:00:25]} 39. Rc1 {[%clk 0:00:23]}  Rd4 {[%clk 0:00:23]} 40. Re1 {[%clk 0:00:15]}  Rd2 {[%clk 0:00:22]} 41. Qh5 {[%clk 0:00:15]}  Qe7 {[%clk 0:00:06]} 42. Qg4 {[%clk 0:00:12]}  Nb6 {[%clk 0:00:05]} 43. e5 {[%clk 0:00:10]}  Nd5 {[%clk 0:00:04]} 44. e6 {[%clk 0:00:10]}  Kh7 {[%clk 0:00:02]} 45. Qf5+ {[%clk 0:00:09]}  Kg8 {[%clk 0:00:03]} 46. Qe5 {[%clk 0:00:07]}  Nf4 {[%clk 0:00:02]} 47. Bxf4 {[%clk 0:00:06]}  gxf4 {[%clk 0:00:03]} 48. Qb8+ {[%clk 0:00:05]}  Kh7 {[%clk 0:00:03]} 49. Qxf4 {[%clk 0:00:05]}  Rd6 {[%clk 0:00:04]} 50. Qf5+ {[%clk 0:00:05]}  Kg8 {[%clk 0:00:04]} 51. a5 {[%clk 0:00:04]}  Rd5 {[%clk 0:00:04]} 52. Qf4 {[%clk 0:00:05]}  Rd6 {[%clk 0:00:04]} 53. h4 {[%clk 0:00:04]}  Rxe6 {[%clk 0:00:04]} 54. Rxe6 {[%clk 0:00:04]}  Qxe6 {[%clk 0:00:05]} 55. Qd4 {[%clk 0:00:04]}  Qf5 {[%clk 0:00:04]} 56. Qd8+ {[%clk 0:00:02]}  Kh7 {[%clk 0:00:04]} 57. Qg5 {[%clk 0:00:03]}  Qe4 {[%clk 0:00:03]} 58. Qh5+ {[%clk 0:00:03]}  Kg8 {[%clk 0:00:04]} 59. g3 {[%clk 0:00:03]}  Qxb4 {[%clk 0:00:04]} 60. Qe8+ {[%clk 0:00:03]}  Kh7 {[%clk 0:00:04]} 61. Qh5+ {[%clk 0:00:04]}  Kg8 {[%clk 0:00:04]} 62. Qe8+ {[%clk 0:00:04]}  Kh7 {[%clk 0:00:05]} 63. Qh5+ {[%clk 0:00:04]}  Kg8 {[%clk 0:00:05]} 1/2-1/2


[Site "https://www.chess.com"]

[Event "Titled Tuesday Blitz August 22 Early 2023"]
[White "CrazyAdvenTures"]
[Black "Zakhartsov, Vladimir"]
[BlackFideId "4145097"]
[WhiteElo "2676"]
[BlackElo "2914"]
[Result "1-0"]
[Round "8"]
[TimeControl "180+1"]
[Date "2023.08.22"]
[WhiteClock "0:00:06"]
[BlackClock "0:00:00"]
[Board "19"]

1. e4 {[%clk 0:02:19]}  c5 {[%clk 0:02:45]} 2. Nf3 {[%clk 0:02:17]}  Nc6 {[%clk 0:02:44]} 3. c3 {[%clk 0:02:16]}  Nf6 {[%clk 0:02:40]} 4. e5 {[%clk 0:02:15]}  Nd5 {[%clk 0:02:41]} 5. d4 {[%clk 0:02:16]}  cxd4 {[%clk 0:02:41]} 6. Bc4 {[%clk 0:02:16]}  Nb6 {[%clk 0:02:41]} 7. Bb3 {[%clk 0:02:16]}  dxc3 {[%clk 0:02:40]} 8. Nxc3 {[%clk 0:02:16]}  e6 {[%clk 0:02:41]} 9. O-O {[%clk 0:02:09]}  d5 {[%clk 0:02:40]} 10. exd6 {[%clk 0:02:00]}  Bxd6 {[%clk 0:02:39]} 11. Qe2 {[%clk 0:01:59]}  a6 {[%clk 0:02:32]} 12. Rd1 {[%clk 0:01:46]}  Qc7 {[%clk 0:02:31]} 13. Ne4 {[%clk 0:01:30]}  Be7 {[%clk 0:02:30]} 14. Bg5 {[%clk 0:01:24]}  O-O {[%clk 0:02:27]} 15. Rac1 {[%clk 0:01:17]}  Nd5 {[%clk 0:02:23]} 16. h4 {[%clk 0:00:54]}  h6 {[%clk 0:02:22]} 17. Bxe7 {[%clk 0:00:34]}  Qxe7 {[%clk 0:02:20]} 18. Bxd5 {[%clk 0:00:34]}  exd5 {[%clk 0:02:21]} 19. Rxd5 {[%clk 0:00:35]}  Bg4 {[%clk 0:02:19]} 20. Qe3 {[%clk 0:00:34]}  Rfe8 {[%clk 0:02:16]} 21. Re1 {[%clk 0:00:34]}  Qb4 {[%clk 0:02:05]} 22. Re2 {[%clk 0:00:27]}  f5 {[%clk 0:01:50]} 23. Nf6+ {[%clk 0:00:19]}  gxf6 {[%clk 0:01:49]} 24. Qxh6 {[%clk 0:00:20]}  Re7 {[%clk 0:01:20]} 25. Qxf6 {[%clk 0:00:09]}  Rf7 {[%clk 0:01:13]} 26. Qg6+ {[%clk 0:00:09]}  Rg7 {[%clk 0:01:13]} 27. Qe6+ {[%clk 0:00:09]}  Kh7 {[%clk 0:00:58]} 28. Ng5+ {[%clk 0:00:08]}  Rxg5 {[%clk 0:00:48]} 29. hxg5 {[%clk 0:00:09]}  Qf8 {[%clk 0:00:40]} 30. Rd7+ {[%clk 0:00:09]}  Kh8 {[%clk 0:00:41]} 31. Re3 {[%clk 0:00:05]}  Rd8 {[%clk 0:00:36]} 32. Red3 {[%clk 0:00:05]}  Re8 {[%clk 0:00:33]} 33. Qg6 {[%clk 0:00:05]}  Re7 {[%clk 0:00:29]} 34. R7d6 {[%clk 0:00:03]}  f4 {[%clk 0:00:15]} 35. f3 {[%clk 0:00:03]}  Bf5 {[%clk 0:00:14]} 36. Qf6+ {[%clk 0:00:03]}  Qxf6 {[%clk 0:00:14]} 37. gxf6 {[%clk 0:00:04]}  Rf7 {[%clk 0:00:13]} 38. R3d5 {[%clk 0:00:04]}  Bg6 {[%clk 0:00:12]} 39. Rg5 {[%clk 0:00:05]}  Kh7 {[%clk 0:00:12]} 40. Rg4 {[%clk 0:00:06]}  Nb4 {[%clk 0:00:04]} 41. Rh4+ {[%clk 0:00:03]}  Kg8 {[%clk 0:00:04]} 42. Rg4 {[%clk 0:00:03]}  Kh7 {[%clk 0:00:04]} 43. Rh4+ {[%clk 0:00:04]}  Kg8 {[%clk 0:00:04]} 44. Rxf4 {[%clk 0:00:05]}  Nc6 {[%clk 0:00:03]} 45. Rg4 {[%clk 0:00:04]}  Kh7 {[%clk 0:00:03]} 46. Kf2 {[%clk 0:00:05]}  Bf5 {[%clk 0:00:04]} 47. Rg5 {[%clk 0:00:05]}  Bb1 {[%clk 0:00:03]} 48. f4 {[%clk 0:00:04]}  Kh6 {[%clk 0:00:03]} 49. g4 {[%clk 0:00:04]}  Bxa2 {[%clk 0:00:02]} 50. Rd1 {[%clk 0:00:03]}  Bd5 {[%clk 0:00:01]} 51. Rdxd5 {[%clk 0:00:04]}  Rxf6 {[%clk 0:00:01]} 52. Kg3 {[%clk 0:00:04]}  Ne7 {[%clk 0:00:01]} 53. Rd1 {[%clk 0:00:05]}  Ng6 {[%clk 0:00:01]} 54. Rh1+ {[%clk 0:00:05]}  Kg7 {[%clk 0:00:00]} 55. f5 {[%clk 0:00:06]} 1-0


[Site "https://www.chess.com"]

[Event "Titled Tuesday Blitz August 22 Early 2023"]
[White "Grischuk, Alexander"]
[Black "Plazuelo Pascual, Juan"]
[WhiteFideId "4126025"]
[BlackFideId "32059566"]
[WhiteElo "3026"]
[BlackElo "2697"]
[Result "1-0"]
[Round "8"]
[TimeControl "180+1"]
[Date "2023.08.22"]
[WhiteClock "0:00:15"]
[BlackClock "0:00:00"]
[Board "20"]

1. d4 {[%clk 0:02:58]}  d5 {[%clk 0:03:00]} 2. Nf3 {[%clk 0:02:58]}  e6 {[%clk 0:03:00]} 3. c4 {[%clk 0:02:56]}  a6 {[%clk 0:03:00]} 4. Bg5 {[%clk 0:02:54]}  Be7 {[%clk 0:03:00]} 5. Bxe7 {[%clk 0:02:55]}  Qxe7 {[%clk 0:03:01]} 6. Nbd2 {[%clk 0:02:55]}  Nf6 {[%clk 0:03:01]} 7. Rc1 {[%clk 0:02:54]}  O-O {[%clk 0:02:28]} 8. g3 {[%clk 0:02:54]}  b6 {[%clk 0:02:16]} 9. cxd5 {[%clk 0:02:54]}  exd5 {[%clk 0:02:11]} 10. Bg2 {[%clk 0:02:54]}  Bb7 {[%clk 0:02:03]} 11. O-O {[%clk 0:02:54]}  a5 {[%clk 0:01:55]} 12. Ne5 {[%clk 0:02:38]}  Na6 {[%clk 0:01:38]} 13. e3 {[%clk 0:02:27]}  c5 {[%clk 0:01:29]} 14. Qb3 {[%clk 0:02:26]}  Nb4 {[%clk 0:01:29]} 15. a3 {[%clk 0:02:16]}  a4 {[%clk 0:01:12]} 16. Qd1 {[%clk 0:02:15]}  Nc6 {[%clk 0:01:11]} 17. Nxc6 {[%clk 0:02:02]}  Bxc6 {[%clk 0:01:12]} 18. dxc5 {[%clk 0:02:03]}  bxc5 {[%clk 0:01:12]} 19. Qc2 {[%clk 0:02:04]}  Bb5 {[%clk 0:01:05]} 20. Rfd1 {[%clk 0:02:00]}  Rac8 {[%clk 0:00:53]} 21. Nb1 {[%clk 0:02:00]}  d4 {[%clk 0:00:42]} 22. exd4 {[%clk 0:01:46]}  cxd4 {[%clk 0:00:42]} 23. Qxc8 {[%clk 0:01:46]}  Rxc8 {[%clk 0:00:43]} 24. Rxc8+ {[%clk 0:01:46]}  Ne8 {[%clk 0:00:43]} 25. Nd2 {[%clk 0:01:24]}  g6 {[%clk 0:00:35]} 26. Nf3 {[%clk 0:01:15]}  d3 {[%clk 0:00:14]} 27. Bf1 {[%clk 0:00:32]}  Qd7 {[%clk 0:00:06]} 28. Rc3 {[%clk 0:00:31]}  Kg7 {[%clk 0:00:05]} 29. Bxd3 {[%clk 0:00:30]}  Nf6 {[%clk 0:00:05]} 30. Be2 {[%clk 0:00:29]}  Qf5 {[%clk 0:00:05]} 31. Nd4 {[%clk 0:00:26]}  Qe4 {[%clk 0:00:01]} 32. Bxb5 {[%clk 0:00:25]}  h5 {[%clk 0:00:02]} 33. Bf1 {[%clk 0:00:23]}  h4 {[%clk 0:00:02]} 34. Bg2 {[%clk 0:00:24]}  Qe5 {[%clk 0:00:02]} 35. Rcd3 {[%clk 0:00:22]}  hxg3 {[%clk 0:00:02]} 36. hxg3 {[%clk 0:00:22]}  Ng4 {[%clk 0:00:03]} 37. Bf3 {[%clk 0:00:22]}  Nf6 {[%clk 0:00:03]} 38. Kg2 {[%clk 0:00:21]}  Qb8 {[%clk 0:00:03]} 39. R1d2 {[%clk 0:00:21]}  Qb6 {[%clk 0:00:03]} 40. Ne2 {[%clk 0:00:20]}  g5 {[%clk 0:00:04]} 41. Rd4 {[%clk 0:00:19]}  Qb8 {[%clk 0:00:03]} 42. Nc3 {[%clk 0:00:19]}  Qc8 {[%clk 0:00:03]} 43. Nd5 {[%clk 0:00:15]}  g4 {[%clk 0:00:02]} 44. Be4 {[%clk 0:00:15]}  Nd7 {[%clk 0:00:00]} 45. Bf5 {[%clk 0:00:15]} 1-0


[Site "https://www.chess.com"]

[Event "Titled Tuesday Blitz August 22 Early 2023"]
[White "Dardha, Daniel"]
[Black "Petrosian, Karlen"]
[WhiteFideId "240990"]
[BlackFideId "4176146"]
[WhiteElo "2941"]
[BlackElo "2708"]
[Result "1-0"]
[Round "8"]
[TimeControl "180+1"]
[Date "2023.08.22"]
[WhiteClock "0:01:01"]
[BlackClock "0:00:04"]
[Board "24"]

1. d4 {[%clk 0:03:00]}  Nf6 {[%clk 0:02:57]} 2. Bg5 {[%clk 0:03:01]}  Ne4 {[%clk 0:02:54]} 3. h4 {[%clk 0:03:01]}  d5 {[%clk 0:02:50]} 4. Nd2 {[%clk 0:03:01]}  Nxd2 {[%clk 0:02:39]} 5. Qxd2 {[%clk 0:03:00]}  h6 {[%clk 0:02:40]} 6. Bf4 {[%clk 0:02:59]}  Nd7 {[%clk 0:02:40]} 7. O-O-O {[%clk 0:02:50]}  e6 {[%clk 0:02:40]} 8. e4 {[%clk 0:02:49]}  c6 {[%clk 0:02:21]} 9. Bd3 {[%clk 0:02:40]}  a5 {[%clk 0:02:15]} 10. Nf3 {[%clk 0:02:38]}  a4 {[%clk 0:02:10]} 11. a3 {[%clk 0:02:36]}  Qa5 {[%clk 0:02:10]} 12. Qe2 {[%clk 0:02:29]}  Nf6 {[%clk 0:02:01]} 13. exd5 {[%clk 0:02:21]}  Nxd5 {[%clk 0:01:50]} 14. Be5 {[%clk 0:02:15]}  b5 {[%clk 0:01:24]} 15. c3 {[%clk 0:01:57]}  Bxa3 {[%clk 0:00:58]} 16. bxa3 {[%clk 0:01:56]}  Qxc3+ {[%clk 0:00:58]} 17. Qc2 {[%clk 0:01:51]}  Qxa3+ {[%clk 0:00:58]} 18. Kd2 {[%clk 0:01:35]}  Qb4+ {[%clk 0:00:50]} 19. Ke2 {[%clk 0:01:31]}  Bd7 {[%clk 0:00:42]} 20. Rc1 {[%clk 0:01:22]}  f6 {[%clk 0:00:37]} 21. Bg3 {[%clk 0:01:19]}  a3 {[%clk 0:00:24]} 22. Rhe1 {[%clk 0:01:18]}  O-O {[%clk 0:00:20]} 23. Kf1 {[%clk 0:01:16]}  Rfc8 {[%clk 0:00:19]} 24. Bh7+ {[%clk 0:01:14]}  Kh8 {[%clk 0:00:19]} 25. Be4 {[%clk 0:01:11]}  a2 {[%clk 0:00:17]} 26. h5 {[%clk 0:01:08]}  Ra6 {[%clk 0:00:14]} 27. Nh4 {[%clk 0:01:05]}  Qxd4 {[%clk 0:00:13]} 28. Ng6+ {[%clk 0:01:02]}  Kg8 {[%clk 0:00:13]} 29. Bxd5 {[%clk 0:01:03]}  cxd5 {[%clk 0:00:04]} 30. Qxc8+ {[%clk 0:01:01]} 1-0


[Site "https://www.chess.com"]

[Event "Titled Tuesday Blitz August 22 Early 2023"]
[White "Papasimakopoulos, Alexandros"]
[Black "Rasulov, Vugar"]
[WhiteFideId "4244125"]
[BlackFideId "13402390"]
[WhiteElo "2704"]
[BlackElo "2890"]
[Result "0-1"]
[Round "8"]
[TimeControl "180+1"]
[Date "2023.08.22"]
[WhiteClock "0:00:15"]
[BlackClock "0:00:22"]
[Board "26"]

1. d4 {[%clk 0:03:00]}  Nf6 {[%clk 0:03:00]} 2. c4 {[%clk 0:03:00]}  e6 {[%clk 0:03:00]} 3. Nc3 {[%clk 0:03:00]}  Bb4 {[%clk 0:03:00]} 4. Qc2 {[%clk 0:03:00]}  O-O {[%clk 0:02:56]} 5. a3 {[%clk 0:03:00]}  Bxc3+ {[%clk 0:02:56]} 6. Qxc3 {[%clk 0:03:00]}  b5 {[%clk 0:02:57]} 7. cxb5 {[%clk 0:03:00]}  c6 {[%clk 0:02:56]} 8. Bg5 {[%clk 0:02:59]}  cxb5 {[%clk 0:02:55]} 9. e3 {[%clk 0:03:00]}  Bb7 {[%clk 0:02:55]} 10. Nf3 {[%clk 0:02:59]}  a6 {[%clk 0:02:52]} 11. Be2 {[%clk 0:02:58]}  Ne4 {[%clk 0:02:46]} 12. Bxd8 {[%clk 0:02:53]}  Nxc3 {[%clk 0:02:47]} 13. Be7 {[%clk 0:02:48]}  Re8 {[%clk 0:02:47]} 14. bxc3 {[%clk 0:02:47]}  Rxe7 {[%clk 0:02:48]} 15. a4 {[%clk 0:02:47]}  bxa4 {[%clk 0:02:29]} 16. Kd2 {[%clk 0:02:36]}  d6 {[%clk 0:02:17]} 17. Rxa4 {[%clk 0:02:27]}  Rc7 {[%clk 0:02:17]} 18. Rb1 {[%clk 0:02:23]}  Nd7 {[%clk 0:02:14]} 19. Ne1 {[%clk 0:02:15]}  Kf8 {[%clk 0:02:11]} 20. Ra5 {[%clk 0:02:15]}  Ke7 {[%clk 0:02:10]} 21. f3 {[%clk 0:02:15]}  Rb8 {[%clk 0:01:54]} 22. Rba1 {[%clk 0:02:00]}  Nb6 {[%clk 0:01:46]} 23. Nc2 {[%clk 0:01:55]}  Bc8 {[%clk 0:01:37]} 24. Nb4 {[%clk 0:01:54]}  Nc4+ {[%clk 0:01:24]} 25. Bxc4 {[%clk 0:01:54]}  Rxc4 {[%clk 0:01:25]} 26. Kd3 {[%clk 0:01:45]}  Rc7 {[%clk 0:01:20]} 27. R1a3 {[%clk 0:01:40]}  d5 {[%clk 0:01:12]} 28. e4 {[%clk 0:01:36]}  dxe4+ {[%clk 0:01:10]} 29. fxe4 {[%clk 0:01:37]}  Kf6 {[%clk 0:01:06]} 30. e5+ {[%clk 0:01:31]}  Kf5 {[%clk 0:01:02]} 31. Ra1 {[%clk 0:01:26]}  Bb7 {[%clk 0:00:55]} 32. Rf1+ {[%clk 0:01:23]}  Kg6 {[%clk 0:00:55]} 33. Rf4 {[%clk 0:01:19]}  Rbc8 {[%clk 0:00:53]} 34. Ra3 {[%clk 0:01:19]}  a5 {[%clk 0:00:52]} 35. Nc2 {[%clk 0:01:18]}  h5 {[%clk 0:00:48]} 36. g3 {[%clk 0:01:16]}  Bh1 {[%clk 0:00:35]} 37. Rf1 {[%clk 0:01:14]}  Bg2 {[%clk 0:00:35]} 38. Rb1 {[%clk 0:01:12]}  Bh3 {[%clk 0:00:32]} 39. Kd2 {[%clk 0:01:11]}  Bf5 {[%clk 0:00:31]} 40. Rbb3 {[%clk 0:01:09]}  h4 {[%clk 0:00:31]} 41. Rxa5 {[%clk 0:01:07]}  hxg3 {[%clk 0:00:30]} 42. hxg3 {[%clk 0:01:08]}  Rh8 {[%clk 0:00:31]} 43. Ne3 {[%clk 0:01:04]}  Rh2+ {[%clk 0:00:31]} 44. Ke1 {[%clk 0:01:04]}  Bd3 {[%clk 0:00:30]} 45. Kd1 {[%clk 0:01:00]}  Rc8 {[%clk 0:00:27]} 46. c4 {[%clk 0:00:59]}  Bxc4 {[%clk 0:00:26]} 47. Nxc4 {[%clk 0:00:55]}  Rxc4 {[%clk 0:00:27]} 48. Rd3 {[%clk 0:00:55]}  Rb4 {[%clk 0:00:27]} 49. Kc1 {[%clk 0:00:54]}  Rbb2 {[%clk 0:00:27]} 50. Rc5 {[%clk 0:00:53]}  Ra2 {[%clk 0:00:27]} 51. Kb1 {[%clk 0:00:53]}  Rhb2+ {[%clk 0:00:26]} 52. Kc1 {[%clk 0:00:53]}  Rg2 {[%clk 0:00:27]} 53. Kb1 {[%clk 0:00:54]}  Rab2+ {[%clk 0:00:27]} 54. Kc1 {[%clk 0:00:53]}  Rbf2 {[%clk 0:00:28]} 55. Rcc3 {[%clk 0:00:49]}  Kg5 {[%clk 0:00:23]} 56. Rc7 {[%clk 0:00:41]}  Kg4 {[%clk 0:00:21]} 57. Rb7 {[%clk 0:00:39]}  Rxg3 {[%clk 0:00:20]} 58. Rxg3+ {[%clk 0:00:38]}  Kxg3 {[%clk 0:00:21]} 59. Rd7 {[%clk 0:00:34]}  g5 {[%clk 0:00:21]} 60. d5 {[%clk 0:00:33]}  exd5 {[%clk 0:00:22]} 61. Rxd5 {[%clk 0:00:32]}  g4 {[%clk 0:00:23]} 62. Kd1 {[%clk 0:00:32]}  Kg2 {[%clk 0:00:23]} 63. Ke1 {[%clk 0:00:26]}  g3 {[%clk 0:00:23]} 64. Rd3 {[%clk 0:00:26]}  Rf5 {[%clk 0:00:23]} 65. Re3 {[%clk 0:00:26]}  Kh2 {[%clk 0:00:23]} 66. e6 {[%clk 0:00:25]}  g2 {[%clk 0:00:22]} 67. Re2 {[%clk 0:00:15]}  fxe6 {[%clk 0:00:22]} 0-1


[Site "https://www.chess.com"]

[Event "Titled Tuesday Blitz August 22 Early 2023"]
[White "Volovich, Vasily"]
[Black "Harsh Suresh"]
[WhiteFideId "34169676"]
[BlackFideId "45018464"]
[WhiteElo "2704"]
[BlackElo "2881"]
[Result "1-0"]
[Round "8"]
[TimeControl "180+1"]
[Date "2023.08.22"]
[WhiteClock "0:00:04"]
[BlackClock "0:00:00"]
[Board "27"]

1. e4 {[%clk 0:02:58]}  e5 {[%clk 0:02:58]} 2. Nf3 {[%clk 0:02:49]}  Nc6 {[%clk 0:02:59]} 3. d4 {[%clk 0:02:50]}  exd4 {[%clk 0:02:54]} 4. Bc4 {[%clk 0:02:50]}  d6 {[%clk 0:02:42]} 5. Nxd4 {[%clk 0:02:49]}  Nf6 {[%clk 0:02:38]} 6. Nc3 {[%clk 0:02:48]}  Be7 {[%clk 0:02:35]} 7. O-O {[%clk 0:02:48]}  O-O {[%clk 0:02:35]} 8. Re1 {[%clk 0:02:48]}  Nxd4 {[%clk 0:02:27]} 9. Qxd4 {[%clk 0:02:49]}  Be6 {[%clk 0:02:28]} 10. Bf4 {[%clk 0:02:41]}  Nd7 {[%clk 0:02:24]} 11. Nd5 {[%clk 0:02:32]}  Bf6 {[%clk 0:02:09]} 12. Nxf6+ {[%clk 0:02:31]}  Qxf6 {[%clk 0:02:10]} 13. Qxf6 {[%clk 0:02:30]}  Nxf6 {[%clk 0:02:10]} 14. Bd3 {[%clk 0:02:27]}  Nd7 {[%clk 0:02:10]} 15. Rad1 {[%clk 0:02:10]}  Nc5 {[%clk 0:02:03]} 16. Bf1 {[%clk 0:02:09]}  a5 {[%clk 0:02:02]} 17. b3 {[%clk 0:02:00]}  f6 {[%clk 0:01:52]} 18. f3 {[%clk 0:01:54]}  Rfe8 {[%clk 0:01:49]} 19. Be3 {[%clk 0:01:48]}  b6 {[%clk 0:01:48]} 20. a3 {[%clk 0:01:40]}  Kf7 {[%clk 0:01:40]} 21. Bb5 {[%clk 0:01:40]}  Red8 {[%clk 0:01:33]} 22. Bc6 {[%clk 0:01:38]}  Ra7 {[%clk 0:01:14]} 23. b4 {[%clk 0:01:31]}  axb4 {[%clk 0:01:15]} 24. axb4 {[%clk 0:01:32]}  Nd7 {[%clk 0:01:15]} 25. Ra1 {[%clk 0:01:32]}  Rxa1 {[%clk 0:01:11]} 26. Rxa1 {[%clk 0:01:33]}  Nb8 {[%clk 0:01:11]} 27. Bb5 {[%clk 0:01:15]}  Bd7 {[%clk 0:00:57]} 28. Bd3 {[%clk 0:01:13]}  Nc6 {[%clk 0:00:55]} 29. b5 {[%clk 0:01:09]}  Na5 {[%clk 0:00:54]} 30. Bd2 {[%clk 0:01:06]}  Ra8 {[%clk 0:00:54]} 31. Kf2 {[%clk 0:01:02]}  Ke7 {[%clk 0:00:49]} 32. g4 {[%clk 0:00:50]}  Be6 {[%clk 0:00:48]} 33. h4 {[%clk 0:00:47]}  Ra7 {[%clk 0:00:45]} 34. Bc3 {[%clk 0:00:41]}  h6 {[%clk 0:00:26]} 35. g5 {[%clk 0:00:41]}  Ra8 {[%clk 0:00:22]} 36. Rg1 {[%clk 0:00:35]}  hxg5 {[%clk 0:00:21]} 37. hxg5 {[%clk 0:00:35]}  Kf7 {[%clk 0:00:20]} 38. gxf6 {[%clk 0:00:24]}  gxf6 {[%clk 0:00:21]} 39. Ra1 {[%clk 0:00:22]}  Ke7 {[%clk 0:00:16]} 40. Ke3 {[%clk 0:00:22]}  Kf7 {[%clk 0:00:06]} 41. Kf4 {[%clk 0:00:20]}  Ra7 {[%clk 0:00:05]} 42. Rh1 {[%clk 0:00:19]}  Kg7 {[%clk 0:00:05]} 43. Rg1+ {[%clk 0:00:19]}  Kf7 {[%clk 0:00:06]} 44. Rh1 {[%clk 0:00:19]}  Kg7 {[%clk 0:00:06]} 45. Ra1 {[%clk 0:00:14]}  Ra8 {[%clk 0:00:05]} 46. Kg3 {[%clk 0:00:11]}  Kf7 {[%clk 0:00:05]} 47. Kf2 {[%clk 0:00:11]}  Kg7 {[%clk 0:00:05]} 48. Bf1 {[%clk 0:00:11]}  Kf7 {[%clk 0:00:05]} 49. f4 {[%clk 0:00:11]}  Bd7 {[%clk 0:00:04]} 50. Bd3 {[%clk 0:00:11]}  Be6 {[%clk 0:00:04]} 51. Rh1 {[%clk 0:00:09]}  Kg7 {[%clk 0:00:04]} 52. f5 {[%clk 0:00:08]}  Bd7 {[%clk 0:00:04]} 53. Rg1+ {[%clk 0:00:08]}  Kf7 {[%clk 0:00:04]} 54. Rg6 {[%clk 0:00:08]}  Nb7 {[%clk 0:00:04]} 55. Rxf6+ {[%clk 0:00:09]}  Ke7 {[%clk 0:00:05]} 56. Rh6 {[%clk 0:00:09]}  Be8 {[%clk 0:00:05]} 57. Rh7+ {[%clk 0:00:08]}  Bf7 {[%clk 0:00:05]} 58. Bc4 {[%clk 0:00:09]}  Rf8 {[%clk 0:00:05]} 59. Bd5 {[%clk 0:00:03]}  Nc5 {[%clk 0:00:05]} 60. Bg7 {[%clk 0:00:03]}  Rg8 {[%clk 0:00:06]} 61. Bh6 {[%clk 0:00:04]}  Kd8 {[%clk 0:00:00]} 62. Rxf7 {[%clk 0:00:04]} 1-0


[Site "https://www.chess.com"]